bitfinex/quotes_ETHUSD_20260312
["timestamp","ask_amount","ask_price","bid_price","bid_amount"]
[1773335813162,1.69152038,2069.3,2068.6,1.66411302]
[1773335814075,0.47129051,2069.2,2068.4,1.64]
[1773335814291,0.47129051,2069.1,2068.4,1.64]
[1773335814474,1.69152038,2069.3,2068.5,0.45560694]
[1773335814792,0.47129051,2069.2,2068.5,0.45560694]
[1773335815592,0.01208465,2069.3,2068.6,1.20854684]
[1773335815776,1.22023183,2069.3,2068.7,0.45560694]
[1773335816083,1.69152234,2069.3,2068.6,1.20854684]
[1773335816462,1.69152234,2069.3,2068.6,1.66415378]
[1773335818177,1.69152234,2069.3,2068.7,0.45560694]
[1773335818178,0.48337516,2069.3,2068.7,0.45560694]
[1773335818382,0.01208465,2069.3,2068.7,0.45560694]
[1773335819165,1.22022916,2069.3,2068.7,0.45560694]
[1773335819885,1.22022668,2069.3,2068.7,0.45560694]
[1773335820087,1.22022668,2069.3,2068.8,1.20843]
[1773335820289,0.01208465,2069.3,2068.8,1.20843]
[1773335820784,1.67936634,2069.5,2068.8,1.20843]
[1773335820989,1.21997062,2069.8,2068.9,0.45560694]
[1773335821289,1.21997062,2069.8,2068.7,1.66405583]
[1773335821290,0.47129051,2069.6,2068.7,1.66405583]
[1773335822358,1.67931177,2069.5,2068.7,1.66405583]
[1773335822588,1.67931177,2069.5,2068.2,0.01208767]
[1773335822589,0.47129051,2068.7,2068.2,0.01208767]
[1773335822885,0.47129051,2069.0,2068.3,0.0011]
[1773335823404,0.47129051,2068.8,2068.3,0.0011]
[1773335823870,0.001,2069.1,2068.2,0.01208767]
[1773335823871,0.47129051,2068.5,2068.2,0.01208767]
[1773335824061,0.47129051,2068.5,2068.0,0.0011]
[1773335824486,1.2086637,2068.4,2068.0,0.0011]
[1773335824798,1.2086637,2068.4,2067.8,4.83714636]
[1773335824799,0.47129051,2068.2,2067.8,0.0011]
[1773335825161,0.47129051,2068.3,2067.8,0.0011]
[1773335825563,0.47129051,2068.1,2067.5,0.0011]
[1773335825774,0.47129051,2067.8,2067.5,0.0011]
[1773335825974,0.47129051,2067.8,2067.3,0.0011]
[1773335826561,0.45920586,2067.6,2067.3,0.0011]
[1773335827082,1.20907288,2067.7,2067.3,0.0011]
[1773335827497,1.68036339,2067.7,2067.3,0.0011]
[1773335828301,0.47129051,2067.6,2067.2,0.01209372]
[1773335828495,1.20918984,2067.5,2067.2,0.01209372]
[1773335829114,1.20918984,2067.5,2067.0,0.0011]
[1773335829115,0.47129051,2067.4,2067.0,0.0011]
[1773335829403,1.20918984,2067.5,2067.0,0.0011]
[1773335829613,1.20918984,2067.5,2067.0,1.21058004]
[1773335829979,1.20918984,2067.5,2067.0,0.0011]
[1773335830592,4.83675937,2067.6,2067.0,0.0011]
[1773335831410,0.47129051,2067.7,2067.0,0.0011]
[1773335831597,1.20911685,2067.7,2067.0,0.45670694]
[1773335832307,4.83584723,2067.9,2067.0,0.45670694]
[1773335832488,1.20883903,2068.1,2067.0,0.45670694]
[1773335832693,1.20883903,2068.1,2067.2,0.45560694]
[1773335833391,0.01209372,2067.7,2067.2,0.45560694]
[1773335833885,1.208812,2068.2,2067.2,0.45560694]
[1773335834290,1.2209027,2068.2,2067.2,0.45560694]
[1773335834488,0.0120907,2068.2,2067.4,0.45560694]
[1773335834813,0.0120907,2068.2,2067.6,0.45560694]
[1773335835483,0.0120907,2068.2,2067.7,0.45560694]
[1773335836986,0.0120907,2068.2,2067.8,1.66462135]
[1773335842114,0.0120907,2068.2,2067.8,1.20901441]
[1773335842614,0.0120907,2068.2,2067.8,1.68550874]
[1773335842794,1.20956209,2068.6,2067.9,0.47649433]
[1773335843390,0.001,2068.6,2067.9,0.47649433]
[1773335843591,0.01208767,2068.7,2067.9,0.47649433]
[1773335843815,0.01208767,2068.7,2068.2,0.47649433]
[1773335843998,0.01208767,2068.7,2068.3,1.68521646]
[1773335844815,0.01208767,2068.7,2068.3,1.20872213]
[1773335845510,0.01208767,2068.7,2068.4,0.47649433]
[1773335845889,0.001,2069.1,2068.6,0.47649433]
[1773335846092,0.001,2069.1,2068.7,1.20848842]
[1773335846300,0.001,2069.1,2068.6,1.20850382]
[1773335846502,0.48266999,2069.1,2068.3,2.84866954]
[1773335846718,0.001,2069.1,2068.4,0.47649433]
[1773335847900,0.48266999,2069.1,2068.2,1.68527491]
[1773335848420,1.20831319,2069.0,2068.2,1.68527491]
[1773335848620,1.68998318,2069.0,2068.2,1.68527491]
[1773335849022,0.48166999,2068.9,2068.2,1.20878058]
[1773335849531,0.48166999,2068.9,2068.0,5.31196269]
[1773335851018,0.48166999,2068.9,2067.9,1.20999748]
[1773335851204,1.20831319,2069.0,2068.0,0.47649433]
[1773335851800,1.68998318,2069.0,2068.0,0.47649433]
[1773335852017,1.68998318,2069.0,2068.2,0.488582]
[1773335852540,0.48166999,2069.0,2068.2,0.488582]
[1773335853399,1.20929475,2069.1,2068.4,0.47649433]
[1773335853594,0.001,2069.1,2068.4,0.47649433]
[1773335853903,1.20926191,2069.1,2068.4,0.47649433]
[1773335855106,1.6909319,2069.1,2068.4,0.47649433]
[1773335855522,1.6909319,2069.1,2068.5,1.20860526]
[1773335855931,0.48166999,2069.0,2068.3,1.2086872]
[1773335856624,0.48166999,2069.0,2068.3,1.68518153]
[1773335856926,1.20926191,2069.1,2068.3,1.68518153]
[1773335857328,1.20926191,2069.1,2068.3,1.2086872]
[1773335857630,0.001,2069.1,2068.5,1.20860526]
[1773335857928,0.001,2069.1,2068.6,0.47649433]
[1773335858126,0.48266999,2069.1,2068.5,1.20860526]
[1773335858331,0.48266999,2069.1,2068.4,1.20862788]
[1773335858731,0.48266999,2069.1,2068.4,1.68512221]
[1773335859630,0.48266999,2069.1,2068.6,0.0011]
[1773335859832,0.001,2068.9,2068.6,0.0011]
[1773335862129,0.001,2068.9,2068.6,1.20964684]
[1773335862629,0.001,2068.9,2068.6,1.25798871]
[1773335863009,1.70195104,2069.3,2068.6,1.25798871]
[1773335863010,0.01208465,2069.3,2068.7,0.4873611]
[1773335863603,0.01208465,2069.3,2068.6,1.25798871]
[1773335863604,0.01208465,2069.3,2068.9,0.4873611]
[1773335864001,0.01208465,2069.3,2069.0,1.20831319]
[1773335864617,1.22024655,2069.3,2068.7,1.69580478]
[1773335865427,0.01208465,2069.3,2068.8,0.4873611]
[1773335866013,0.01208465,2069.3,2068.9,1.20837159]
[1773335867213,1.22022365,2069.3,2068.9,1.20837159]
[1773335867611,0.01208465,2069.3,2069.0,0.4873611]
[1773335868118,4.83173195,2069.7,2069.1,1.20825479]
[1773335868806,1.67840696,2069.8,2069.2,0.4873611]
[1773335868807,0.47050244,2069.8,2069.2,0.4873611]
[1773335869010,0.01208163,2069.8,2069.2,0.4873611]
[1773335869621,1.2199284,2069.8,2069.2,0.4873611]
[1773335870016,0.01208163,2069.8,2069.2,0.4873611]
[1773335870433,0.01208163,2069.8,2069.3,1.20813801]
[1773335870823,0.01208163,2069.8,2069.4,0.49074783]
[1773335872027,0.4625667,2070.2,2069.5,2.59718152]
[1773335872208,1.20861878,2070.2,2069.6,0.49074783]
[1773335872403,0.001,2070.2,2069.6,0.49074783]
[1773335872634,0.001,2070.2,2069.7,1.69865235]
[1773335872838,0.4625667,2070.2,2069.6,2.85392133]
[1773335873345,0.4625667,2070.2,2069.6,3.34466916]
[1773335873707,0.4625667,2070.2,2069.6,1.646]
[1773335873908,0.4625667,2070.2,2069.4,5.32295289]
[1773335873909,0.4625667,2070.2,2069.3,0.0011]
[1773335874111,0.4615667,2069.9,2069.3,0.0011]
[1773335874636,1.20784616,2069.8,2069.3,0.0011]
[1773335875338,1.20784616,2069.8,2069.3,0.49184783]
[1773335875508,1.20770865,2070.1,2069.3,0.49184783]
[1773335876135,1.20865609,2070.2,2069.3,0.49184783]
[1773335876328,1.20865609,2070.2,2069.5,0.49074783]
[1773335876742,1.20865609,2070.2,2069.6,1.20796289]
[1773335877125,1.67022279,2070.2,2069.6,1.20796289]
[1773335878140,1.67022279,2070.2,2069.7,0.49074783]
[1773335878141,0.001,2070.2,2069.7,0.49074783]
[1773335878725,0.001,2070.2,2069.7,1.20785707]
[1773335879515,0.001,2070.2,2069.6,1.20796289]
[1773335879939,0.4615667,2070.1,2069.3,0.01318163]
[1773335880138,0.4615667,2070.1,2069.3,1.22131216]
[1773335880341,0.4615667,2070.1,2069.3,0.01318163]
[1773335880538,0.4615667,2069.9,2069.3,0.01318163]
[1773335880952,0.4615667,2069.7,2069.3,0.01318163]
[1773335881453,0.4615667,2069.7,2069.3,1.22129886]
[1773335881751,1.20784616,2069.8,2069.3,1.22130337]
[1773335881948,1.20781189,2069.9,2069.4,0.02747872]
[1773335882251,1.20781189,2069.9,2069.3,1.22130337]
[1773335882417,1.20781189,2069.9,2069.3,1.7120512]
[1773335883349,4.83149688,2070.2,2069.4,0.49074783]
[1773335883350,1.67022733,2070.2,2069.4,0.49074783]
[1773335883545,6.41,2070.1,2069.3,1.22130337]
[1773335883849,1.20866063,2070.2,2069.3,1.22130337]
[1773335883850,0.4615667,2070.0,2069.3,1.22130337]
[1773335884030,0.4615667,2070.0,2069.3,1.7120512]
[1773335884226,0.4625667,2069.9,2069.3,1.22130337]
[1773335885049,0.4625667,2069.9,2069.3,1.22131672]
[1773335885050,1.20784616,2069.8,2069.3,1.22131672]
[1773335886016,1.66941286,2069.8,2069.3,0.01318163]
[1773335886346,1.66941286,2069.8,2069.3,1e-08]
[1773335886347,0.4615667,2069.6,2069.3,1e-08]
[1773335887121,1.66955749,2069.6,2069.3,1e-08]
[1773335887447,1.2079691,2069.6,2069.3,1e-08]
[1773335887746,1.2079691,2069.6,2069.0,0.0011]
[1773335887747,0.4615667,2069.5,2069.0,0.0011]
[1773335888646,0.4615667,2069.5,2068.8,0.0011]
[1773335889029,1.20798033,2069.6,2068.4,0.0011]
[1773335889030,0.4615667,2069.3,2068.4,0.0011]
[1773335889350,0.4615667,2069.0,2068.4,0.0011]
[1773335891223,1.20837159,2068.9,2068.4,0.0011]
[1773335893654,0.4615667,2068.8,2068.4,0.0011]
[1773335893854,1.20835935,2069.0,2068.4,0.0011]
[1773335894355,1.66987078,2069.1,2068.4,0.49184783]
[1773335894531,1.20824416,2069.2,2068.4,0.49184783]
[1773335894733,1.20824416,2069.2,2068.5,0.53909204]
[1773335895750,1.66981086,2069.2,2068.5,1.74764642]
[1773335895955,0.4615667,2069.1,2068.4,1.2097608]
[1773335896326,0.4615667,2069.1,2068.4,0.0011]
[1773335896528,0.4615667,2069.0,2068.4,0.0011]
[1773335897262,0.4615667,2069.0,2068.2,0.01208767]
[1773335897438,0.4615667,2068.7,2068.2,0.01208767]
[1773335897761,0.4615667,2068.5,2068.2,0.01208767]
[1773335897938,0.4615667,2068.4,2068.1,0.00108413]
[1773335898362,0.4615667,2068.4,2068.2,0.0011]
[1773335898532,0.4615667,2068.4,2068.1,0.00108413]
[1773335898765,0.4615667,2068.4,2067.9,0.0011]
[1773335899560,0.4615667,2068.1,2067.6,0.0011]
[1773335899950,4.83500449,2068.3,2067.6,0.0011]
[1773335899951,1.20875435,2068.3,2067.6,0.0011]
[1773335900261,0.4615667,2068.4,2067.6,0.49184783]
[1773335900467,1.71513223,2068.7,2067.7,0.53395438]
[1773335900961,1.22062188,2068.7,2067.7,0.53395438]
[1773335901160,0.49451035,2068.6,2067.7,0.53395438]
[1773335901534,1.22062188,2068.7,2067.7,0.53395438]
[1773335901858,1.22062188,2068.7,2067.7,0.48559147]
[1773335902076,1.22062188,2068.7,2067.9,0.48559147]
[1773335902274,1.22062188,2068.7,2068.0,0.48559147]
[1773335902275,0.01208767,2068.7,2068.0,0.48559147]
[1773335902450,1.2082674,2069.1,2068.3,0.48559147]
[1773335903771,0.01208465,2069.3,2068.3,0.48559147]
[1773335903968,1.2202376,2069.3,2068.3,0.48559147]
[1773335904152,0.49451035,2069.0,2068.1,1.69438226]
[1773335904848,0.49451035,2069.0,2068.2,0.48559147]
[1773335905753,1.2202376,2069.3,2068.2,0.48559147]
[1773335905754,1.71474795,2069.3,2068.2,0.48559147]
[1773335905955,1.71474795,2069.3,2068.3,0.48559147]
[1773335906169,1.71474795,2069.3,2068.4,1.2086637]
[1773335906640,1.71474795,2069.3,2068.4,1.196573]
[1773335906841,0.49451035,2069.2,2068.4,1.196573]
[1773335907249,1.2202376,2069.3,2068.4,1.196573]
[1773335907250,1.2202376,2069.3,2068.5,0.48559147]
[1773335908045,1.71474795,2069.3,2068.6,1.20854684]
[1773335910046,0.49451035,2069.0,2068.2,1.22082681]
[1773335910247,0.49451035,2068.8,2068.2,1.22082681]
[1773335910471,0.49451035,2068.7,2068.2,0.01208767]
[1773335911071,0.49451035,2068.7,2068.2,1e-08]
[1773335911286,0.49451035,2068.4,2067.9,0.0011]
[1773335911577,0.49451035,2068.1,2067.6,0.0011]
[1773335912762,1.20889748,2068.0,2067.6,0.0011]
[1773335913165,1.20876028,2068.3,2067.6,0.0011]
[1773335914466,0.49451035,2068.1,2067.6,0.0011]
[1773335914667,1.20888444,2068.1,2067.7,0.0120907]
[1773335914867,4.83498771,2068.3,2067.7,0.0120907]
[1773335915377,1.20872213,2068.3,2067.7,0.0120907]
[1773335915582,1.20870589,2068.4,2067.7,0.0120907]
[1773335915954,0.49451035,2068.3,2067.7,0.0120907]
[1773335916854,1.70329093,2068.2,2067.7,0.0120907]
[1773335918284,1.20876675,2068.3,2067.7,1.22115586]
[1773335918485,1.20871192,2068.4,2067.7,1.70674733]
[1773335918862,1.20854684,2068.6,2067.7,1.70674733]
[1773335919162,1.20854684,2068.6,2067.8,0.48559147]
[1773335920462,5.34058917,2068.7,2067.8,0.48559147]
[1773335920463,1.71509024,2068.7,2067.8,0.48559147]
[1773335920864,1.71509024,2068.7,2067.9,1.20895594]
[1773335921777,0.001,2068.1,2067.9,1.20895594]
[1773335921980,0.001,2068.1,2067.8,1.69566866]
[1773335922179,0.001,2068.1,2067.8,1.21007719]
[1773335922363,0.001,2068.1,2067.8,1.21011168]
[1773335923471,1.22061814,2068.7,2067.9,0.46974882]
[1773335924168,1.6889751,2068.7,2067.9,0.46974882]
[1773335924488,0.46835696,2068.6,2067.9,0.46974882]
[1773335924889,1.20860526,2068.5,2068.0,1.20889748]
[1773335925401,0.46835696,2068.4,2067.8,1.21007955]
[1773335925760,1.20860526,2068.5,2067.8,1.21007955]
[1773335926190,1.20860526,2068.5,2067.8,1.67982837]
[1773335926692,0.46835696,2068.4,2067.8,0.0011]
[1773335927081,1.20872213,2068.3,2067.8,0.0011]
[1773335927281,1.67706678,2068.4,2067.8,0.0011]
[1773335928610,1.20870982,2068.4,2067.8,0.0011]
[1773335933085,0.45181062,2068.3,2067.8,0.0011]
[1773335933884,1.20878058,2068.2,2068.0,0.0011]
[1773335934086,1.20978058,2068.2,2068.0,0.0011]
[1773335935297,0.001,2068.2,2068.0,0.0011]
[1773335935694,0.001,2068.2,2068.0,0.46019975]
[1773335936202,0.001,2068.2,2068.1,1.20883903]
[1773335936497,0.001,2068.2,2068.0,1.66908907]
[1773335936702,0.001,2068.2,2068.0,0.0011]
[1773335937075,0.45281062,2068.2,2067.8,0.0011]
[1773335938584,1.20883903,2068.1,2067.8,0.0011]
[1773335938801,1.66163952,2068.2,2067.8,0.0011]
[1773335938989,1.2098289,2068.2,2067.8,0.0011]
[1773335940612,0.001,2068.2,2067.8,0.0011]
[1773335940783,0.45281062,2068.2,2067.8,0.0011]
[1773335942095,0.45281062,2068.2,2067.6,0.0011]
[1773335942682,1.66064965,2068.1,2067.6,0.0011]
[1773335944825,1.22190051,2068.2,2067.7,0.45909975]
[1773335945121,0.0130907,2068.2,2067.7,0.45909975]
[1773335945308,1.22187843,2068.2,2067.7,0.45909975]
[1773335945511,1.22187843,2068.2,2067.8,0.46019975]
[1773335946213,0.0130907,2068.2,2067.8,0.46019975]
[1773335946919,0.0130907,2068.2,2067.9,0.45909975]
[1773335947098,1.22187666,2068.2,2067.8,0.0011]
[1773335949919,1.67368728,2068.2,2067.8,0.0011]
[1773335950626,0.45181062,2068.1,2067.8,0.0011]
[1773335950812,1.20889748,2068.0,2067.8,0.0011]
[1773335951190,0.45181062,2067.9,2067.6,0.0011]
[1773335953017,0.45181062,2067.7,2067.4,0.0011]
[1773335953619,0.45181062,2067.7,2067.3,0.0011]
[1773335954192,0.45181062,2067.7,2067.2,1e-08]
[1773335954396,0.45181062,2067.5,2067.0,0.0011]
[1773335954598,2.59882118,2067.6,2066.7,0.01209674]
[1773335954599,0.45181062,2067.2,2066.7,0.01209674]
[1773335955130,0.45181062,2067.0,2066.7,1e-08]
[1773335955646,0.45181062,2067.0,2066.2,0.01209977]
[1773335955647,0.45181062,2066.7,2066.2,0.01209977]
[1773335956103,0.45181062,2066.7,2065.9,0.36586803]
[1773335956307,2.59882118,2066.5,2065.9,0.36586803]
[1773335956634,0.45181062,2066.4,2065.6,0.01210279]
[1773335956837,0.45181062,2066.1,2065.6,0.01210279]
[1773335957015,1.66187838,2066.0,2065.2,1.21050077]
[1773335957215,0.45181062,2065.8,2064.9,4.84283402]
[1773335957418,1.21006776,2066.0,2064.8,1.66983163]
[1773335957419,3.0506318,2065.6,2064.8,1.66983163]
[1773335958109,1.66187838,2066.0,2064.9,0.45909975]
[1773335958628,0.45181062,2065.9,2064.9,0.45909975]
[1773335959002,1.66197525,2065.9,2065.0,1.21065375]
[1773335959331,4.84031213,2066.0,2065.1,0.45909975]
[1773335959332,1.21011124,2066.0,2065.1,0.45909975]
[1773335960229,1.6738967,2066.2,2065.1,2.59882118]
[1773335960435,0.01210279,2066.2,2065.5,0.49011459]
[1773335960607,1.67732589,2066.7,2065.8,0.49011459]
[1773335960806,0.45556629,2066.6,2065.8,0.49011459]
[1773335961237,0.45556629,2066.4,2065.4,0.49011459]
[1773335961810,3.80859616,2066.5,2065.2,1.21050115]
[1773335961811,0.45556629,2066.1,2065.2,1.21050115]
[1773335962830,0.45556629,2066.1,2065.3,0.49011459]
[1773335963222,1.66559165,2066.1,2065.4,1.21041928]
[1773335963407,0.45556629,2066.1,2065.4,1.70053387]
[1773335963608,1.20999665,2066.2,2065.4,1.70053387]
[1773335964110,0.45556629,2066.1,2065.4,1.21041928]
[1773335964513,0.45556629,2066.1,2065.2,4.84204639]
[1773335964833,0.45556629,2066.1,2065.2,5.33216098]
[1773335965321,1.66562057,2066.1,2065.2,5.33216098]
[1773335965904,1.66562057,2066.1,2065.3,0.49011459]
[1773335966109,1.66551692,2066.2,2065.3,0.49011459]
[1773335966323,0.45556629,2066.1,2065.2,1.2105365]
[1773335967212,1.21006776,2066.0,2065.2,1.2105365]
[1773335967413,1.66563405,2066.0,2065.2,1.2105365]
[1773335967737,1.21006776,2066.0,2065.2,1.2105365]
[1773335967905,0.45556629,2065.9,2065.2,1.2105365]
[1773335968513,1.20987734,2066.4,2065.4,0.49011459]
[1773335968717,1.66538327,2066.5,2065.7,0.49011459]
[1773335969045,0.45556629,2066.4,2065.3,0.49011459]
[1773335969411,1.20989207,2066.3,2065.5,0.49011459]
[1773335969636,0.45556629,2066.4,2065.6,0.50221738]
[1773335969944,0.45556629,2066.4,2065.6,0.01210279]
[1773335969945,0.45556629,2066.3,2065.6,0.01210279]
[1773335971449,0.001,2066.1,2065.6,1.22237506]
[1773335972750,0.45656629,2066.1,2065.6,0.01210279]
[1773335972921,0.45556629,2065.9,2065.2,1.21048803]
[1773335973551,1.21018491,2065.8,2065.2,1.21048803]
[1773335975549,1.21104224,2066.1,2065.3,0.49011459]
[1773335975851,0.001,2066.1,2065.3,0.49011459]
[1773335976035,0.001,2066.1,2065.4,0.49011459]
[1773335976627,0.001,2066.1,2065.6,0.49011459]
[1773335977556,1.21101797,2066.1,2065.4,1.21041928]
[1773335977736,1.21101797,2066.1,2065.4,1.70053387]
[1773335978823,1.21101797,2066.1,2065.3,2.82847744]
[1773335978824,0.45556629,2066.0,2065.3,2.82847744]
[1773335979253,0.45556629,2066.0,2065.3,2.82847174]
[1773335979424,1.21012633,2065.9,2065.3,2.57847174]
[1773335979626,1.66569262,2065.9,2065.3,1.21047174]
[1773335981463,1.66569262,2065.9,2065.2,1.21049078]
[1773335982831,0.45540556,2065.8,2065.1,1.713875]
[1773335983260,0.45540556,2065.6,2065.1,0.01320582]
[1773335983460,0.45540556,2065.6,2064.9,0.0011]
[1773335983461,0.45540556,2065.3,2064.9,0.0011]
[1773335983765,0.45540556,2065.3,2064.6,0.01320884]
[1773335983766,1.21071238,2064.9,2064.6,0.01320884]
[1773335983962,0.45540556,2064.8,2064.6,0.01320884]
[1773335984261,3.8150191,2064.9,2063.6,0.1743584]
[1773335984262,0.45540556,2064.4,2063.6,0.1743584]
[1773335984477,0.45540556,2064.4,2063.1,4.84705315]
[1773335984478,0.45540556,2063.8,2062.7,1.21200368]
[1773335984760,0.45540556,2063.8,2062.6,4.84801473]
[1773335984761,0.45540556,2063.7,2062.8,0.0011]
[1773335984931,0.45540556,2063.7,2062.7,0.0011]
[1773335985342,0.45540556,2063.6,2062.7,0.0011]
[1773335985549,2.63889933,2063.8,2062.7,0.49366752]
[1773335985766,0.45540556,2064.2,2063.0,1.21182743]
[1773335986062,0.45540556,2064.2,2063.1,0.49256752]
[1773335986231,0.45540556,2063.9,2063.1,0.0011]
[1773335987026,0.45540556,2063.6,2063.1,0.0011]
[1773335987257,0.45540556,2064.1,2063.1,0.0011]
[1773335987858,1.66664587,2064.0,2063.1,0.0011]
[1773335988158,0.45540556,2063.8,2063.1,0.0011]
[1773335988366,1.21124031,2064.0,2063.1,0.0011]
[1773335988367,3.05971228,2063.6,2063.1,0.0011]
[1773335988731,0.45540556,2063.5,2062.7,1.21200153]
[1773335989064,0.45540556,2063.5,2062.8,0.0011]
[1773335989860,1.66699807,2063.4,2062.9,0.0011]
[1773335990062,1.66699807,2063.4,2062.4,1.21217998]
[1773335990362,1.66699807,2063.4,2062.5,0.0011]
[1773335990363,0.48963368,2063.2,2062.5,0.0011]
[1773335990861,1.21141638,2063.7,2062.6,0.49949598]
[1773335991028,1.21141638,2063.7,2062.6,0.50059598]
[1773335991361,1.70105006,2063.7,2062.6,0.50059598]
[1773335991531,1.70105006,2063.7,2062.6,2.11559598]
[1773335992256,1.70105006,2063.7,2062.7,1.21200368]
[1773335992257,3.0939404,2063.6,2062.7,1.21200368]
[1773335992559,1.21141638,2063.7,2063.1,0.01211793]
[1773335992767,4.84562743,2063.8,2063.1,0.01211793]
[1773335992768,1.21135768,2063.8,2063.1,0.01211793]
[1773335992969,1.7009777,2063.9,2063.2,0.0011]
[1773335993169,0.0121149,2064.1,2063.2,0.0011]
[1773335993170,0.0121149,2064.1,2063.2,0.50059598]
[1773335993341,0.0121149,2064.1,2063.3,0.49949598]
[1773335993740,0.0121149,2064.1,2063.4,0.0011]
[1773335994062,0.0121149,2064.1,2063.5,1.2115338]
[1773335994437,1.22303827,2064.6,2063.5,1.2115338]
[1773335994646,0.48963368,2064.5,2063.5,1.2115338]
[1773335995255,0.001,2063.6,2063.5,1.2115338]
[1773335995470,0.48963368,2064.5,2063.5,1.2115338]
[1773335995986,3.0939404,2064.3,2063.5,1.2115338]
[1773335996192,1.21112295,2064.2,2063.5,1.2115338]
[1773335996990,1.70075663,2064.2,2063.5,1.2115338]
[1773335997155,1.70075663,2064.2,2063.2,1.21170996]
[1773335997156,0.48963368,2064.1,2063.2,1.21170996]
[1773335997751,2.60430672,2064.0,2063.2,1.21170996]
[1773335997961,0.48963368,2063.7,2063.1,0.01211793]
[1773335998177,0.48963368,2063.2,2062.8,0.0011]
[1773335998355,4.30553291,2063.4,2062.8,0.0011]
[1773335998554,1.70122619,2063.4,2062.8,0.0011]
[1773335998878,0.48963368,2063.1,2062.8,0.0011]
[1773335999047,1.70122619,2063.4,2062.8,0.0011]
[1773335999672,0.48963368,2063.1,2062.5,0.01322096]
[1773336000183,1.70146111,2063.0,2062.5,0.01322096]
[1773336000376,0.48963368,2062.9,2062.5,0.01322096]
[1773336000706,0.48963368,2062.9,2054.2,0.46415]
[1773336000707,1.21182743,2063.0,2054.2,0.46415]
[1773336000708,1.21182743,2063.0,2059.6,4.8551665]
[1773336000710,5.156536,2062.2,2059.6,4.8551665]
[1773336000863,5.156536,2062.2,2059.9,0.37428317]
[1773336000864,0.48963368,2061.6,2059.9,0.37428317]
[1773336001666,0.48963368,2061.6,2060.2,2.58447742]
[1773336001971,0.48963368,2061.6,2060.3,0.04853662]
[1773336002164,1.21270919,2061.5,2060.4,1.21335662]
[1773336002350,1.21270919,2061.5,2060.5,0.0485319]
[1773336002949,1.70234287,2061.5,2060.4,1.21335662]
[1773336003180,5.091,2062.2,2060.5,0.37428304]
[1773336003383,5.3395294,2062.0,2060.7,2.60430672]
[1773336003569,1.21223876,2062.3,2061.0,2.60430672]
[1773336003907,1.70184388,2062.4,2061.1,1.64492055]
[1773336004259,1.70184388,2062.4,2061.2,1.21288569]
[1773336004579,1.70184388,2062.4,2060.8,1.607]
[1773336004580,3.0939404,2061.8,2060.8,1.607]
[1773336004778,5.20861344,2062.2,2060.9,2.64426142]
[1773336004779,0.48963368,2062.2,2060.9,2.64426142]
[1773336005282,0.48963368,2062.2,2060.9,2.60430672]
[1773336005579,1.2122102,2062.4,2061.2,2.60430672]
[1773336006348,1.2122102,2062.4,2061.0,5.20861344]
[1773336006349,0.48963368,2062.2,2061.0,1.21300339]
[1773336007688,0.48963368,2062.2,2061.3,0.0011]
[1773336008386,1.21235633,2062.1,2061.3,0.0011]
[1773336008572,0.48963368,2062.2,2061.3,0.04099237]
[1773336008775,1.21228052,2062.3,2061.3,2.64529909]
[1773336009291,0.01212399,2062.5,2061.3,2.64529909]
[1773336009292,0.01212702,2062.0,2061.4,1.618]
[1773336009468,1.22425298,2062.5,2061.5,0.03988849]
[1773336009670,0.48963368,2062.4,2061.3,0.0011]
[1773336009870,0.48963368,2062.4,2061.4,1.619]
[1773336010271,1.21223876,2062.3,2061.5,1.21270919]
[1773336010472,2.60430672,2062.2,2061.3,0.0011]
[1773336010677,0.48963368,2062.1,2061.3,1.21392191]
[1773336010869,0.48963368,2062.1,2061.4,0.03988097]
[1773336011191,0.7,2061.9,2061.3,1.25380928]
[1773336011964,0.57558821,2061.9,2061.3,3.858116]
[1773336012171,1.21219054,2062.4,2061.3,3.858116]
[1773336012490,1.21219054,2062.4,2061.3,3.81823054]
[1773336012998,5.35042241,2062.5,2061.5,2.60430672]
[1773336012999,0.01212399,2062.5,2061.5,2.60430672]
[1773336013199,0.01212399,2062.5,2061.3,1.62459054]
[1773336013200,0.01212399,2062.5,2061.8,2.60430672]
[1773336013490,0.01212399,2062.5,2061.8,1.626]
[1773336013491,1.22425744,2062.5,2061.8,1.626]
[1773336013670,0.01212399,2062.5,2061.8,1.626]
[1773336014372,0.01212399,2062.5,2061.9,1.21247393]
[1773336015278,1.2242524,2062.5,2061.9,1.21247393]
[1773336015475,0.01212399,2062.5,2061.9,3.81678065]
[1773336015687,1.21186273,2063.0,2061.9,3.81678065]
[1773336016281,1.22393066,2063.1,2061.9,3.81678065]
[1773336016498,1.22393066,2063.1,2061.9,1.21247393]
[1773336016499,0.48963368,2063.0,2061.9,1.21247393]
[1773336016803,1.22392408,2063.1,2061.9,1.21247393]
[1773336016804,0.48963368,2062.9,2061.9,1.21247393]
[1773336018978,0.48963368,2062.9,2061.8,6.47589572]
[1773336018979,0.48963368,2062.7,2061.8,1.21250805]
[1773336019693,0.001,2062.3,2061.8,1.21250805]
[1773336020598,4.84777971,2062.9,2061.8,1.21250805]
[1773336020599,1.21193023,2062.9,2061.8,1.21250805]
[1773336020980,0.01212096,2063.1,2061.9,2.95333769]
[1773336020981,1.22392416,2063.1,2061.9,2.95333769]
[1773336021182,1.22392416,2063.1,2062.0,0.01212399]
[1773336021503,1.69943052,2063.1,2062.0,0.01212399]
[1773336022904,1.69943052,2063.1,2062.1,1.21235633]
[1773336023100,0.47550636,2062.9,2062.0,1.22449787]
[1773336023302,0.47550636,2062.9,2062.0,0.01212399]
[1773336023303,0.47550636,2062.8,2062.0,0.01212399]
[1773336023676,0.47550636,2062.7,2062.0,0.01212399]
[1773336023880,0.47550636,2062.6,2062.0,0.01212399]
[1773336024079,0.47550636,2062.5,2062.0,0.01212399]
[1773336024801,0.47550636,2062.5,2062.0,1.22452301]
[1773336025104,1.21217998,2062.4,2062.0,0.01212399]
[1773336025803,1.21217998,2062.4,2061.5,1.22481326]
[1773336025804,0.47550636,2062.1,2061.5,1.22481326]
[1773336026101,3.33290086,2062.1,2061.5,0.01212702]
[1773336026280,2.86027934,2062.0,2061.5,1.22483251]
[1773336026480,0.47550636,2062.1,2061.5,1.22483251]
[1773336026677,3.30430672,2062.2,2061.5,0.01212702]
[1773336026678,3.33546847,2062.0,2061.5,0.01212702]
[1773336026875,0.7,2062.2,2061.5,1.22483249]
[1773336027075,1.21241513,2062.0,2061.5,1.22483249]
[1773336027283,2.86013041,2061.9,2061.5,1.22483506]
[1773336027607,1.68790922,2062.1,2061.5,1.22483006]
[1773336027805,2.86305559,2062.0,2061.5,1.22483006]
[1773336028202,2.86305559,2061.9,2061.5,1.22483006]
[1773336028409,1.68787113,2062.1,2061.6,0.04850601]
[1773336028606,2.86357765,2062.0,2061.5,1.22483006]
[1773336028808,7.80921437,2062.2,2061.5,1.22483006]
[1773336028809,2.86357765,2061.9,2061.5,1.22483006]